bitfinex-derivatives/quotes_ETHF0:USTF0_20250430
["timestamp","ask_amount","ask_price","bid_price","bid_amount"]
[1745989275656,1.90025,1811.7,1811.6,2.846]
[1745989279266,1.90025,1811.7,1811.6,2.84602]
[1745989279965,1.10365,1811.7,1811.6,2.84602]
[1745989280363,3.64344,1811.8,1811.7,1.10365]
[1745989280570,1.10364,1811.8,1811.7,2.82065]
[1745989280962,1.10364,1811.8,1811.7,1.717]
[1745989282367,1.10371,1811.7,1811.6,1.1037]
[1745989282569,1.90871,1811.7,1811.6,2.8207]
[1745989285672,1.90871,1811.7,1811.6,1.717]
[1745989286674,1.90871,1811.7,1811.6,2.82072]
[1745989286876,1.90871,1811.7,1811.6,1.717]
[1745989288071,1.10372,1811.6,1811.5,1.89948]
[1745989288368,2.83972,1811.6,1811.5,3.54758]
[1745989290074,2.83972,1811.6,1811.5,2.4438]
[1745989290276,3.64402,1811.6,1811.5,2.4438]
[1745989292980,3.64402,1811.6,1811.5,3.54758]
[1745989293481,3.64402,1811.6,1811.5,2.75188]
[1745989299776,3.64402,1811.6,1811.5,1.6481]
[1745989300779,1.10384,1811.4,1811.3,0.871]
[1745989300985,1.10384,1811.4,1811.3,2.5287]
[1745989301378,1.90404,1811.4,1811.3,2.5287]
[1745989301784,1.90404,1811.4,1811.3,1.6577]
[1745989302180,3.56124,1811.4,1811.3,1.6577]
[1745989303679,1.10396,1811.2,1811.1,3.493]
[1745989303884,1.10396,1811.2,1811.1,5.2021]
[1745989304790,2.83186,1811.2,1811.1,5.2021]
[1745989306588,1.10402,1811.1,1811.0,0.8486]
[1745989306786,1.10408,1811.0,1810.9,1.10412]
[1745989306989,1.10408,1811.0,1810.9,2.76032]
[1745989307285,1.10408,1811.1,1811.0,1.10407]
[1745989307487,1.10408,1811.1,1811.0,2.76027]
[1745989308193,1.10408,1811.1,1811.0,6.58827]
[1745989308887,1.10408,1811.1,1811.0,5.4842]
[1745989309191,1.10408,1811.1,1811.0,6.58828]
[1745989309792,1.10399,1811.2,1811.1,1.10399]
[1745989309980,1.10399,1811.2,1811.1,4.35779]
[1745989313995,4.31173,1811.3,1811.2,1.10396]
[1745989314191,4.31173,1811.3,1811.2,2.76956]
[1745989315393,4.31173,1811.3,1811.2,1.6656]
[1745989315693,5.89003,1811.3,1811.2,1.6656]
[1745989316796,1.10396,1811.2,1811.1,0.8083]
[1745989316999,3.52306,1811.2,1811.1,2.4745]
[1745989317192,3.52306,1811.2,1811.1,0.8083]
[1745989317402,1.10402,1811.1,1811.0,1.6662]
[1745989317898,3.52311,1811.2,1811.1,1.10402]
[1745989318099,1.91131,1811.2,1811.1,1.10402]
[1745989318401,1.91131,1811.2,1811.1,1.90692]
[1745989326807,1.10402,1811.1,1811.0,1.6662]
[1745989327102,3.54422,1811.1,1811.0,2.77028]
[1745989329412,1.90322,1811.1,1811.0,2.77028]
[1745989329606,1.90322,1811.1,1811.0,3.63188]
[1745989335112,1.90322,1811.1,1811.0,7.45988]
[1745989335312,0.7992,1811.1,1811.0,7.45988]
[1745989336315,0.7992,1811.1,1811.0,3.63188]
[1745989336718,1.90322,1811.1,1811.0,3.63188]
[1745989338210,1.90322,1811.1,1811.0,7.45988]
[1745989339018,1.90322,1811.1,1811.0,6.59828]
[1745989339211,3.54762,1811.1,1811.0,6.59828]
[1745989341020,1.90322,1811.1,1811.0,6.59828]
[1745989341214,1.90322,1811.1,1811.0,7.42118]
[1745989344120,1.90322,1811.1,1811.0,3.59318]
[1745989345118,1.90322,1811.1,1811.0,6.59828]
[1745989345321,6.68702,1811.1,1811.0,3.828]
[1745989346226,1.10408,1811.0,1810.9,3.51983]
[1745989346522,1.94218,1811.0,1810.9,2.4157]
[1745989346722,3.51818,1811.0,1810.9,2.4157]
[1745989347327,3.51818,1811.0,1810.9,3.51984]
[1745989349015,3.51818,1811.0,1810.9,2.4157]
[1745989349725,3.51818,1811.0,1810.9,3.51984]
[1745989350225,3.51818,1811.0,1810.9,7.34784]
[1745989350429,1.94218,1811.0,1810.9,7.34784]
[1745989351231,1.94218,1811.0,1810.9,3.51984]
[1745989353333,1.94218,1811.0,1810.9,2.4157]
[1745989353531,3.58638,1811.0,1810.9,2.4157]
[1745989356130,3.58638,1811.0,1810.9,3.51984]
[1745989358638,1.94218,1811.0,1810.9,3.51984]
[1745989359137,1.94218,1811.0,1810.9,2.4157]
[1745989360436,1.94218,1811.0,1810.9,3.51984]
[1745989365137,1.94218,1811.0,1810.9,7.34784]
[1745989366125,1.94218,1811.0,1810.9,3.51984]
[1745989367140,1.94218,1811.0,1810.9,7.34784]
[1745989368138,1.94218,1811.0,1810.9,3.51984]
[1745989373343,1.1042,1810.8,1810.7,4.31203]
[1745989373543,1.1042,1810.8,1810.7,5.95163]
[1745989373745,1.1042,1810.8,1810.7,4.8474]
[1745989373944,1.9091,1810.8,1810.7,4.8474]
[1745989374438,1.9091,1810.8,1810.7,1.6396]
[1745989374836,2.7739,1810.8,1810.7,1.6396]
[1745989380946,5.9817,1810.8,1810.7,1.6396]
[1745989383455,1.10439,1810.6,1810.5,1.10438]
[1745989384153,1.10439,1810.6,1810.5,2.69438]
[1745989386964,1.10439,1810.6,1810.5,1.59]
[1745989387257,1.96229,1810.6,1810.5,2.69439]
[1745989388162,1.96229,1810.6,1810.5,1.59]
[1745989390559,1.96229,1810.6,1810.5,2.69439]
[1745989390960,1.10439,1810.6,1810.5,2.69439]
[1745989392653,1.10439,1810.6,1810.4,1.6496]
[1745989392654,1.7166,1810.7,1810.3,3.2078]
[1745989392857,0.8514,1810.5,1810.3,4.3123]
[1745989393058,1.95583,1810.5,1810.4,4.37595]
[1745989394167,1.95583,1810.5,1810.4,8.20395]
[1745989395268,1.10443,1810.5,1810.4,4.37595]
[1745989396166,1.10443,1810.5,1810.4,8.20395]
[1745989398671,1.10443,1810.5,1810.4,7.0995]
[1745989399071,2.74453,1810.5,1810.4,6.2278]
[1745989399567,5.95233,1810.5,1810.4,3.828]
[1745989399773,5.95233,1810.5,1809.8,13.77931743]
[1745989399774,2.76113,1810.4,1809.9,7.34487829]
[1745989399976,1.10467,1810.1,1810.0,2.72978]
[1745989401273,1.10461,1810.2,1810.1,1.10462]
[1745989401469,1.10461,1810.2,1810.1,3.54002]
[1745989402278,1.10461,1810.2,1810.1,2.4354]
[1745989402576,1.10461,1810.2,1810.1,1.6251]
[1745989402771,2.70521,1810.2,1810.1,1.6251]
[1745989403378,3.53731,1810.2,1810.1,1.6251]
[1745989404670,1.10477,1809.9,1809.8,1.10478]
[1745989404975,1.10477,1809.9,1809.8,1.90708]
[1745989405175,1.10477,1809.9,1809.8,5.73508]
[1745989405476,1.10477,1809.9,1809.8,7.46038]
[1745989405776,1.10477,1809.9,1809.8,7.46041]
[1745989407675,1.10477,1809.9,1809.8,6.3556]
[1745989407975,1.89557,1809.9,1809.8,6.3556]
[1745989408169,1.89557,1809.9,1809.8,2.5276]
[1745989408774,2.68267,1809.9,1809.8,2.5276]
[1745989408978,2.68267,1809.9,1809.8,3.63241]
[1745989409177,2.68267,1809.9,1809.8,2.5276]
[1745989410183,2.68267,1809.9,1809.8,6.3556]
[1745989411180,5.89047,1809.9,1809.8,2.5276]
[1745989411484,5.89047,1809.9,1809.8,1.7253]
[1745989411984,1.10494,1809.6,1809.5,1.5802]
[1745989412783,3.63094,1809.6,1809.5,1.5802]
[1745989413287,3.63094,1809.6,1809.5,5.4082]
[1745989414387,3.63094,1809.6,1809.5,6.5132]
[1745989415779,3.63094,1809.6,1809.5,5.4082]
[1745989416280,1.10494,1809.6,1809.5,6.5802]
[1745989416481,0.8563,1810.6,1809.5,9.788]
[1745989416680,4.31219,1810.5,1810.3,1.10447]
[1745989416991,1.10439,1810.5,1810.4,2.5392]
[1745989417182,1.96066,1810.6,1810.4,3.64365]
[1745989417383,1.96066,1810.6,1810.5,1.7222]
[1745989421891,3.65136,1810.6,1810.5,1.7222]
[1745989422990,3.65136,1810.6,1810.5,2.82659]
[1745989423384,3.65136,1810.6,1810.5,1.7222]
[1745989425302,4.0181,1810.7,1810.5,2.82659]
[1745989425501,1.10433,1810.6,1810.5,2.82659]
[1745989429399,5.12241,1810.7,1810.6,1.10433]
[1745989429590,4.31211,1810.7,1810.6,2.69633]
[1745989430293,1.10424,1810.8,1810.7,1.10426]
[1745989430602,1.10417,1810.9,1810.8,1.1042]
[1745989431497,4.31197,1810.9,1810.8,1.1042]
[1745989432492,1.10417,1810.9,1810.8,1.1042]
[1745989434091,1.1042,1810.8,1810.7,0.00399319]
[1745989434296,2.7109,1810.8,1810.7,0.00399319]
[1745989435099,6.5389,1810.8,1810.7,0.00399319]
[1745989441104,16.2967,1810.8,1810.1,3.2078]
[1745989441306,1.10469,1810.0,1809.9,2.4776]
[1745989442205,2.79349,1810.0,1809.9,6.3056]
[1745989442407,2.79349,1810.0,1809.9,7.41035]
[1745989444307,2.79349,1810.0,1809.9,6.3056]
[1745989445007,6.00129,1810.0,1809.9,6.3056]
[1745989445310,6.00129,1810.0,1809.9,2.4776]
[1745989446007,2.79349,1810.0,1809.9,2.4776]
[1745989446407,6.00129,1810.0,1809.9,1.6765]
[1745989447710,4.31249,1810.0,1809.9,2.78125]
[1745989448209,4.31249,1810.0,1809.9,6.60925]
[1745989449610,1.10469,1810.0,1809.9,6.60925]
[1745989449812,4.54388,1810.1,1810.0,1.10469]
[1745989450009,4.31241,1810.2,1810.1,1.10463]
[1745989450205,4.31241,1810.2,1810.1,1.91823]
[1745989450611,4.31241,1810.2,1810.1,3.64423]
[1745989452911,3.2078,1810.2,1810.1,3.64423]
[1745989453613,4.31237,1810.2,1810.1,3.64423]
[1745989455317,4.31237,1810.2,1810.1,2.5396]
[1745989455819,1.10457,1810.2,1810.1,2.5396]
[1745989457816,1.95327,1810.2,1810.1,2.5396]
[1745989458812,1.95327,1810.2,1810.1,1.726]
[1745989459014,1.10463,1810.1,1810.0,3.828]
[1745989459313,1.10475,1809.9,1809.8,3.4805]
[1745989459517,1.10475,1809.9,1809.8,1.7335]
[1745989460220,1.89295,1809.9,1809.8,5.5615]
[1745989462122,1.89295,1809.9,1809.8,1.7335]
[1745989463123,1.89295,1809.9,1809.8,5.5615]
[1745989465725,1.10475,1809.9,1809.8,6.66631]
[1745989465921,1.10475,1809.9,1809.8,5.5615]
[1745989467830,1.10475,1809.9,1809.8,6.66631]
[1745989468133,1.10475,1809.9,1809.8,5.5615]
[1745989470128,1.10475,1809.9,1809.8,1.7335]
[1745989473343,1.10475,1809.9,1809.8,3.3606]
[1745989473541,1.10475,1809.9,1809.8,2.4869]
[1745989473843,3.53925,1809.9,1809.8,2.4869]
[1745989480142,3.53925,1809.9,1809.8,6.3149]
[1745989480838,3.53925,1809.9,1809.8,5.4551]
[1745989481045,3.53925,1809.9,1809.8,3.828]
[1745989481241,1.10487,1809.7,1809.6,0.8624]
[1745989481443,1.10487,1809.7,1809.6,2.481]
[1745989482045,3.56047,1809.7,1809.6,2.481]
[1745989482246,3.56047,1809.7,1809.6,1.6186]
[1745989483749,1.105,1809.5,1809.4,1.7046]
[1745989484549,1.105,1809.5,1809.4,2.80966]
[1745989485252,1.105,1809.5,1809.4,8.36516]
[1745989488747,1.10498,1809.6,1809.5,1.10498]
[1745989488950,1.10498,1809.6,1809.5,1.6039]
[1745989489149,1.10498,1809.6,1809.5,5.4319]
[1745989492149,1.10498,1809.6,1809.5,1.6039]
[1745989494054,1.10498,1809.6,1809.5,2.7089]
[1745989494257,4.31273,1809.7,1809.6,1.10494]
[1745989494455,4.31273,1809.7,1809.6,2.69284]
[1745989495759,1.10486,1809.8,1809.7,1.10486]
[1745989495958,1.10486,1809.8,1809.7,4.30806]
[1745989496257,1.10486,1809.8,1809.7,8.13606]
[1745989497359,4.3126,1809.9,1809.8,1.10481]
[1745989497556,4.3126,1809.9,1809.8,2.75651]
[1745989498162,4.3126,1809.9,1809.8,6.58451]
[1745989499557,1.10472,1810.0,1809.8,6.58451]
[1745989499755,0.7963,1810.2,1810.0,1.10468]
[1745989499756,1.10468,1810.1,1810.0,1.10468]
[1745989499956,1.10468,1810.1,1810.0,1.91268]
[1745989500156,1.10468,1810.1,1810.0,5.426]
[1745989500750,1.10468,1810.1,1810.0,7.0062]
[1745989501965,1.91398,1810.1,1810.0,7.0062]
[1745989502158,1.91398,1810.1,1810.0,2.3882]
[1745989502355,3.52778,1810.1,1810.0,2.3882]
[1745989502958,6.73558,1810.1,1810.0,1.5802]
[1745989503159,1.10475,1809.9,1809.8,40.8]
[1745989503359,1.10475,1809.9,1809.8,42.4567]
[1745989503559,1.10475,1809.9,1809.8,43.56151]
[1745989503859,1.10475,1809.9,1809.8,2.76151]
[1745989504167,1.10475,1809.9,1809.8,6.58951]
[1745989507473,4.31247,1810.1,1810.0,1.10469]
[1745989507969,1.10469,1810.0,1809.9,2.73691]
[1745989508270,4.31248,1810.1,1810.0,1.10469]
[1745989508468,4.31248,1810.1,1810.0,4.43039]
[1745989509168,4.31248,1810.1,1810.0,8.25839]
[1745989510570,4.31248,1810.1,1810.0,7.1537]
[1745989511668,4.31248,1810.1,1810.0,8.25839]
[1745989512264,4.31248,1810.1,1810.0,4.43039]
[1745989513665,1.90091,1810.2,1810.1,1.10463]
[1745989513867,1.90091,1810.2,1810.1,2.82623]
[1745989514570,1.90091,1810.2,1810.1,1.7216]
[1745989516377,3.64061,1810.2,1810.1,1.7216]
[1745989521573,1.10461,1810.2,1810.1,2.82623]
[1745989523483,1.10461,1810.2,1810.1,1.7216]
[1745989523785,2.76951,1810.2,1810.1,1.7216]
[1745989524672,1.10463,1810.1,1810.0,0.854]
[1745989524981,5.92323,1810.1,1810.0,0.854]
[1745989525383,5.92323,1810.1,1810.0,2.4526]
[1745989525982,4.31243,1810.1,1810.0,3.55729]
[1745989527086,4.31243,1810.1,1810.0,2.4526]
[1745989530979,1.10463,1810.1,1810.0,2.4526]
[1745989531183,4.31243,1810.1,1810.0,2.4526]
[1745989534082,4.31243,1810.1,1810.0,6.2806]
[1745989534285,4.31243,1810.1,1810.0,5.4266]
[1745989536383,4.31243,1810.1,1810.0,1.5986]
[1745989537187,4.31243,1810.1,1810.0,5.4266]
[1745989538387,4.31243,1810.1,1810.0,1.5986]
[1745989541093,1.10475,1809.9,1809.8,2.8107]
[1745989541388,1.10475,1809.9,1809.7,40.8]
[1745989541389,1.10494,1809.6,1809.5,7.34487829]
[1745989541588,1.10494,1809.6,1809.5,9.28457829]
[1745989542291,1.10494,1809.6,1809.5,12.00757829]
[1745989542486,1.10494,1809.6,1809.5,13.62997829]
[1745989543187,3.2078,1809.7,1809.6,1.10494]
[1745989543385,11.03120758,1810.7,1809.8,11.92404]
[1745989543583,11.03120758,1810.7,1810.6,1.10433]
[1745989543985,11.03120758,1810.7,1810.6,4.41703]
[1745989545084,1.10422,1810.8,1810.7,1.10426]
[1745989545280,1.10422,1810.8,1810.7,2.72666]
[1745989546087,1.10422,1810.8,1810.7,6.55466]
[1745989546993,1.10422,1810.8,1810.7,5.4504]
[1745989548893,1.10419,1810.9,1810.7,5.4504]
[1745989549094,1.10419,1810.9,1810.8,1.6636]
[1745989550192,1.10419,1810.9,1810.8,5.4916]
[1745989550595,4.31199,1810.9,1810.8,5.4916]
[1745989550795,5.90059,1810.9,1810.8,5.4916]
[1745989551691,3.2078,1810.9,1810.8,6.5958]
[1745989552796,4.31182,1811.1,1811.0,1.10408]
[1745989553187,4.31182,1811.1,1811.0,4.93208]
[1745989553390,4.31182,1811.1,1811.0,7.44248]
[1745989553696,1.10402,1811.1,1811.0,7.44248]
[1745989553895,1.10402,1811.1,1811.0,6.3384]
[1745989559900,1.10402,1811.1,1811.0,7.44248]
[1745989560696,1.10402,1811.1,1811.0,6.3384]
[1745989561800,2.84472,1811.2,1811.1,1.10402]
[1745989562001,2.84472,1811.2,1811.1,2.81742]
[1745989562202,2.84472,1811.2,1811.1,1.7134]
[1745989562591,4.0006,1811.3,1811.2,1.10396]
[1745989562795,5.1045,1811.3,1811.2,1.10396]
[1745989563289,5.1045,1811.3,1811.2,4.93196]
[1745989565510,5.1045,1811.3,1811.2,5.73606]
[1745989566610,1.8967,1811.3,1811.2,5.73606]
[1745989566910,0.7928,1811.3,1811.2,5.73606]
[1745989567112,1.1039,1811.3,1811.2,4.6321]
[1745989567313,1.1039,1811.3,1811.2,5.73601]
[1745989567505,1.1039,1811.3,1811.2,7.47011]
[1745989568013,1.1039,1811.3,1811.2,6.3662]
[1745989570009,1.1039,1811.3,1811.2,5.5621]
[1745989570312,1.1039,1811.3,1811.2,3.828]
[1745989570514,1.9518,1811.3,1811.2,3.828]
[1745989570707,3.5825,1811.3,1811.2,3.828]
[1745989571310,1.10408,1811.0,1810.9,3.2078]
[1745989571813,1.10408,1811.0,1810.9,4.8429]
[1745989572214,1.10408,1811.0,1810.9,8.6709]
[1745989572411,1.92938,1811.0,1810.9,8.6709]
[1745989573314,1.92938,1811.0,1810.9,7.0358]
[1745989573515,1.92938,1811.0,1810.9,3.828]
[1745989573906,3.50568,1811.0,1810.9,3.828]
[1745989580115,7.07068,1811.0,1810.9,3.828]
[1745989580315,1.10426,1810.7,1810.6,2.4452]
[1745989580616,1.10426,1810.7,1810.6,3.54953]
[1745989580818,1.10426,1810.7,1810.6,2.4452]
[1745989584523,1.10426,1810.7,1810.6,3.54953]
[1745989586327,1.10426,1810.7,1810.6,2.4452]
[1745989587516,1.94836,1810.7,1810.6,1.6288]
[1745989600637,3.65556,1810.7,1810.6,1.6288]
[1745989602634,1.94836,1810.7,1810.6,1.6288]
[1745989604538,1.10426,1810.7,1810.6,1.6288]
[1745989604735,1.10426,1810.7,1810.6,2.73313]
[1745989604934,1.10425,1810.8,1810.7,1.10425]
[1745989605138,1.1042,1810.8,1810.7,7.34483]
[1745989605540,1.1042,1810.8,1810.7,6.2406]
[1745989605740,1.1042,1810.8,1810.7,7.34486]
[1745989606043,1.1042,1810.8,1810.7,6.2406]
[1745989607040,1.1042,1810.8,1810.7,7.34486]
[1745989609241,1.1042,1810.8,1810.7,6.2406]
[1745989609443,1.1042,1810.8,1810.7,7.34486]
[1745989609635,1.1042,1810.8,1810.7,6.2406]
[1745989611442,1.1042,1810.8,1810.7,7.34486]
[1745989611841,1.1042,1810.8,1810.7,6.2406]
[1745989612943,2.8477,1810.8,1810.7,6.2406]
[1745989617142,2.8477,1810.8,1810.7,5.4025]
[1745989617343,2.8477,1810.8,1810.7,3.828]
[1745989624146,1.10433,1810.6,1810.5,0.8479]
[1745989624345,1.10433,1810.6,1810.5,2.4426]
[1745989624741,2.76283,1810.6,1810.5,2.4426]
[1745989625346,2.76283,1810.6,1810.5,6.2706]
[1745989633649,4.34423,1810.6,1810.5,6.2706]
[1745989633850,2.76283,1810.6,1810.5,6.2706]
[1745989635859,2.76121,1810.4,1810.0,7.34487829]
[1745989636044,4.31243,1810.1,1810.0,9.08337829]
[1745989636348,4.31243,1810.1,1810.0,7.34487829]
[1745989638452,4.31243,1810.1,1810.0,6.10947829]
[1745989638754,1.10469,1810.0,1809.9,9.58568758]
[1745989638945,7.11579,1810.0,1809.9,9.58568758]
[1745989639142,1.10494,1809.6,1809.5,2.6095]
[1745989639344,1.10494,1809.6,1809.5,0.8729]
[1745989640245,1.10494,1809.6,1809.5,4.7009]
[1745989645649,1.10494,1809.6,1809.5,3.828]
[1745989645855,2.77654,1809.6,1809.5,3.828]
[1745989646256,1.105,1809.5,1809.4,0.7894]
[1745989647056,1.105,1809.6,1809.4,5.10221]
[1745989647253,1.105,1809.6,1809.5,0.8471]
[1745989648153,1.105,1809.6,1809.5,4.6751]
[1745989648959,1.105,1809.6,1809.5,5.7801]
[1745989650560,1.105,1809.6,1809.5,4.6751]
[1745989651154,1.105,1809.6,1809.5,3.828]
[1745989651860,2.8183,1809.6,1809.5,3.828]
[1745989652160,1.105,1809.5,1809.4,1.6051]
[1745989653066,1.105,1809.5,1809.4,2.71016]
[1745989653360,1.105,1809.5,1809.4,6.53816]
[1745989658355,1.10498,1809.6,1809.5,1.10496]
[1745989658559,1.10498,1809.6,1809.5,2.77706]
[1745989659058,1.10498,1809.6,1809.5,1.6721]
[1745989659255,1.10498,1809.6,1809.5,5.5001]
[1745989660270,2.82368,1809.6,1809.5,1.6721]
[1745989660670,3.61328,1809.6,1809.5,1.6721]
[1745989663065,1.89458,1809.6,1809.5,1.6721]
[1745989663272,1.10498,1809.6,1809.5,1.6721]
[1745989666287,1.10498,1809.6,1809.5,2.7771]
[1745989667284,4.3127,1809.7,1809.6,1.10494]
[1745989667477,4.3127,1809.7,1809.6,2.4722]
[1745989668286,4.3127,1809.7,1809.6,3.57714]
[1745989668478,4.3127,1809.7,1809.6,2.4722]
[1745989670884,1.1049,1809.7,1809.6,2.4722]
[1745989671086,1.1049,1809.7,1809.6,1.6808]
[1745989671283,2.6789,1809.7,1809.6,1.6808]
[1745989674884,1.1049,1809.7,1809.6,2.78574]
[1745989675487,1.1049,1809.7,1809.6,1.6808]
[1745989676288,1.1049,1809.7,1809.6,2.78574]
[1745989676679,1.1049,1809.7,1809.6,1.6808]
[1745989677483,2.7018,1809.7,1809.6,1.6808]
[1745989679799,1.10511,1809.4,1809.2,3.2078]
[1745989679983,1.10511,1809.4,1809.3,3.3296]
[1745989680186,1.10511,1809.4,1809.3,8.2627]
[1745989680384,0.7909,1809.5,1809.4,1.10506]
[1745989680589,1.10497,1809.6,1809.5,1.10497]
[1745989681296,1.10497,1809.6,1809.5,6.61247]
[1745989682396,1.10497,1809.6,1809.5,5.5075]
[1745989683196,1.10497,1809.6,1809.5,1.6795]
[1745989683694,1.10497,1809.6,1809.5,2.7845]
[1745989683992,1.10497,1809.6,1809.5,1.6795]
[1745989689489,2.4421,1809.7,1809.4,3.2078]
[1745989689490,1.105,1809.5,1809.4,3.2078]
[1745989689693,1.105,1809.5,1809.4,4.7966]
[1745989690597,1.105,1809.5,1809.4,5.90166]
[1745989691094,1.10495,1809.6,1809.5,1.10495]
[1745989691298,1.10495,1809.6,1809.5,2.69375]
[1745989692292,1.89582,1809.7,1809.6,1.10494]
[1745989692491,1.89582,1809.7,1809.6,4.51634]
[1745989692688,1.89582,1809.7,1809.6,3.4114]
[1745989693201,1.89582,1809.7,1809.6,4.51634]
[1745989693502,14.21203931,1809.8,1809.7,1.10487]
[1745989693900,1.10487,1809.7,1809.6,4.51629]
[1745989694297,11.00424931,1809.8,1809.7,1.10487]
[1745989694600,11.00424931,1809.8,1809.7,2.81727]
[1745989694897,3.64516,1809.8,1809.7,2.81727]
[1745989695102,7.35908931,1809.9,1809.8,1.10481]
[1745989695298,7.35908931,1809.9,1809.8,5.99231]
[1745989695893,8.95078931,1809.9,1809.8,2.78451]
[1745989696295,10.05553931,1809.9,1809.8,6.61251]
[1745989696503,2.69645,1809.9,1809.8,6.61251]
[1745989697097,1.5917,1809.9,1809.8,6.61251]
[1745989697308,1.5917,1809.9,1809.8,9.82031]
[1745989698598,7.35908931,1810.2,1810.1,1.10463]
[1745989698804,1.3188299,1810.2,1810.1,4.31243]
[1745989699001,1.3188299,1810.2,1810.1,9.31243]
[1745989699398,1.3188299,1810.2,1810.1,10.89383]
[1745989700098,1.3188299,1810.2,1810.1,5.89383]
[1745989701699,1.10445,1810.4,1810.3,1.10447]
[1745989702096,1.10445,1810.4,1810.3,7.35547]
[1745989702700,1.10445,1810.4,1810.3,6.251]
[1745989702904,1.10445,1810.4,1810.3,3.828]
[1745989703105,1.10457,1810.2,1810.1,6.7388]
[1745989703301,1.10457,1810.2,1810.1,4.8145]
[1745989703801,1.90757,1810.2,1810.1,4.8145]
[1745989704000,1.10469,1810.0,1809.9,14.26717606]
[1745989704206,1.10469,1810.0,1809.9,16.51267606]
[1745989704598,1.10469,1810.0,1809.9,5.4533]
[1745989705307,1.96399,1810.0,1809.9,1.6253]
[1745989707106,1.10481,1809.8,1809.7,4.0177]
[1745989707305,1.10481,1809.8,1809.7,5.67]
[1745989708307,1.10481,1809.8,1809.7,10.60287]
[1745989708703,1.10481,1809.8,1809.7,9.498]
[1745989709107,1.10481,1809.8,1809.7,8.6881]
[1745989709308,2.77451,1809.8,1809.7,8.6881]
[1745989710208,2.77451,1809.8,1809.7,4.8601]
[1745989710807,1.10487,1809.7,1809.6,0.8226]
[1745989711103,2.78317,1809.7,1809.6,0.8226]
[1745989711307,2.78317,1809.7,1809.6,2.4997]
[1745989712309,1.10487,1809.7,1809.6,3.60464]
[1745989712798,1.10487,1809.7,1809.6,4.47324]
[1745989713308,1.10487,1809.7,1809.6,2.4997]
[1745989714507,1.10487,1809.7,1809.6,3.60464]
[1745989714710,1.10487,1809.7,1809.6,2.4997]
[1745989716512,1.10487,1809.7,1809.6,1.6771]
[1745989716706,1.96777,1809.7,1809.6,1.6771]
[1745989718307,1.96777,1809.7,1809.6,2.78204]
[1745989718613,1.10487,1809.7,1809.6,2.78204]
[1745989719301,1.10484,1809.8,1809.7,1.10482]
[1745989719508,1.10484,1809.8,1809.7,4.39382]
[1745989721221,1.10484,1809.8,1809.7,8.22182]
[1745989722128,1.10484,1809.8,1809.7,4.39382]
[1745989722308,1.105,1809.5,1809.4,4.31281]
[1745989722507,1.105,1809.5,1809.4,7.71751]
[1745989722711,1.10497,1809.6,1809.5,1.10496]
[1745989722911,1.10497,1809.6,1809.5,2.78956]
[1745989723309,1.10497,1809.6,1809.5,6.61756]
[1745989724008,1.10494,1809.6,1809.5,6.61756]
[1745989724316,5.1333,1809.9,1809.5,8.27509]
[1745989724517,1.10474,1810.0,1809.9,1.10473]
[1745989725210,1.10474,1810.0,1809.9,4.93273]
[1745989725405,1.10474,1810.0,1809.9,6.52413]
[1745989726410,1.10474,1810.0,1809.9,5.4194]
[1745989726715,1.10474,1810.0,1809.9,6.52415]
[1745989727215,1.10466,1810.1,1810.0,1.10466]
[1745989727416,1.10461,1810.2,1810.1,1.10462]
[1745989727606,1.10461,1810.2,1810.1,1.93942]
[1745989727811,1.10461,1810.2,1810.1,3.53082]
[1745989728512,1.10461,1810.2,1810.1,1.5914]
[1745989728815,1.10463,1810.1,1810.0,3.828]
[1745989729115,2.77613,1810.1,1810.0,3.828]
[1745989729312,1.10469,1810.0,1809.9,1.6222]
[1745989730016,1.10475,1809.9,1809.8,3.533]
[1745989730418,1.10481,1809.8,1809.7,1.6222]
[1745989730709,1.10487,1809.7,1809.6,4.3127]
[1745989731118,1.10486,1809.8,1809.7,1.10487]
[1745989731416,1.10487,1809.7,1809.6,4.31269]
[1745989731613,1.5884,1809.9,1809.6,4.31269]
[1745989731614,1.10485,1809.8,1809.7,1.10486]
[1745989731814,1.10485,1809.8,1809.7,1.91096]
[1745989732015,1.1048,1809.9,1809.8,1.10481]
[1745989732216,1.1048,1809.9,1809.8,1.96111]
[1745989732810,1.1048,1809.9,1809.8,0.8563]
[1745989733014,1.1048,1809.9,1809.8,1.96111]
[1745989733321,1.1048,1809.9,1809.8,5.78911]
[1745989734115,1.1048,1809.9,1809.8,4.6843]
[1745989734719,1.1048,1809.9,1809.8,5.78911]
[1745989735118,1.1048,1809.9,1809.8,4.6843]
[1745989736116,1.1048,1809.9,1809.8,3.828]
[1745989737222,1.10487,1809.7,1809.6,4.0449]
[1745989737720,1.10487,1809.7,1809.6,1.94204]
[1745989738920,1.10487,1809.7,1809.6,0.8371]
[1745989739116,1.10494,1809.6,1809.5,5.77005]
[1745989739324,1.10494,1809.6,1809.5,6.62905]
[1745989742522,1.10494,1809.6,1809.5,6.6291]
[1745989742919,1.10494,1809.6,1809.5,3.828]
[1745989744128,1.105,1809.5,1809.4,4.9226]
[1745989744422,1.9015,1809.5,1809.4,4.9226]
[1745989744626,1.9015,1809.5,1809.4,6.02766]
[1745989745228,1.9015,1809.5,1809.4,8.7506]
[1745989746626,1.9015,1809.5,1809.4,9.85566]